Cogmind - Beta 10.2 @@@ ROGUE MODE // 2021.03.14 @ 17:42:10 Player: ChromeKnight Result: Self-destructed Performance ------------- Evolutions (1) 500 Regions Visited (2) 400 Robots Destroyed (8) 40 Value Destroyed (244) 244 Prototype IDs (0) 0 Alien Tech Used (0) 0 Bonus (0) 0 TOTAL SCORE: 1184 Bonus ------- None Cogmind --------- Core Integrity 330/400 Matter 280/300 Energy 244/250 System Corruption 0% Temperature Cool (0) Movement Walking (120) Location -9/Materials Parts ------- > --- POWER (1) -------- Ion Engine > --- PROPULSION (4) --- Aluminum Leg Aluminum Leg Aluminum Leg Improved Aluminum Leg > --- UTILITY (2) ------ Heat Sink Medium Storage Unit > --- WEAPON (2) ------- (None) > --- INVENTORY (8) ---- Small Storage Unit High-capacity Matter Pod (200) Sensor Array Light Armor Plating Light Armor Plating Light Assault Rifle Peak State ------------ > --- POWER ------------ Ion Engine > --- PROPULSION ------- Aluminum Leg Aluminum Leg Aluminum Leg Improved Aluminum Leg > --- UTILITY ---------- Heat Sink Medium Storage Unit > --- WEAPON ----------- EM Pulse Gun Particle Gun > --- INVENTORY -------- Aluminum Leg Small Storage Unit High-capacity Matter Pod Sensor Array Light Armor Plating Light Armor Plating EM Pulse Gun Light Assault Rifle [Rating: 11] Favorites ----------- Power Ion Engine Engine Ion Engine Propulsion Aluminum Leg Leg Aluminum Leg Utility Heat Sink Device Heat Sink Storage Medium Storage Unit Weapon Small Laser Energy Gun Small Laser Build | -11 -10 -9 ------- Run | Scr Mat Mat Slots Evolved 2 | . . 2 Power . | . . . Propulsion 2 | . . 2 Utility . | . . . Weapon . | . . . Parts Attached 21 | 6 7 8 Power 2 | 1 1 . Engine 2 | 1 1 . Core . | . . . Reactor . | . . . Propulsion 10 | 2 2 6 Treads . | . . . Leg 10 | 2 2 6 Wheel . | . . . Hover . | . . . Flight . | . . . Utility 4 | 1 3 . Device 1 | . 1 . Storage 3 | 1 2 . Processor . | . . . Hackware . | . . . Protection . | . . . Artifact . | . . . Weapon 5 | 2 1 2 Energy Gun 5 | 2 1 2 Energy Cannon . | . . . Ballistic Gun . | . . . Ballistic Cannon . | . . . Launcher . | . . . Special Weapon . | . . . Impact Weapon . | . . . Slashing Weapon . | . . . Piercing Weapon . | . . . Special Melee Weapon . | . . . Unidentified Prototypes . | . . . Parts Lost 3 | . . 3 Power . | . . . Propulsion . | . . . Utility . | . . . Weapon 3 | . . 3 Highest Loss Streak 2 | . . 2 Average Slot Usage (%) 95 | . 95 93 Engine 13 | . 14 11 Leg 31 | . 28 39 Device 11 | . 11 11 Storage 12 | . 13 11 Energy Gun 25 | . 28 20 Naked Turns . | . . . Heaviest Build 19 | 10 18 19 Greatest Support 43 | 20 20 43 Greatest Overweight (x) . | . . . Average Overweight (x) . | . . . Largest Inventory Capacity 8 | 6 8 8 Average Capacity 7 | 5 7 8 Most Carried 8 | 1 8 8 Average Carried 5 | . 5 6 Final Capacity 8 | 6 8 8 Final Carried 8 | 1 8 6 Class Distribution -------------------- 54% | Scavenger-Mutant 45% | Mutant Dominant Class ---------------- Mutant | -10/Materials Scavenger-Mutant | -9/Materials Resources | -11 -10 -9 ----------- Run | Scr Mat Mat Matter Collected 585 | 179 341 65 Remotely . | . . . Salvage Created 349 | . 274 75 Parts 18 | . 14 4 Haulers Intercepted 2 | . 2 . Recyclers Shooed . | . . . Parts Field Recycled . | . . . Retrieved Matter . | . . . Parts Self-Destructed . | . . . Prevented . | . . . Kills | -11 -10 -9 ------- Run | Scr Mat Mat Combat Hostiles Destroyed 6 | . 4 2 Guns 5 | . 3 2 AOE 1 | . 1 . Classes Destroyed 3 | . 2 1 Hauler 2 | . 2 . Grunt 5 | . 4 1 Duelist 1 | . . 1 Best Kill Streak 2 | . 2 2 Combat Bots Only 2 | . 2 2 Max Kills in Single Turn 1 | . 1 1 Gunslinging . | . . . Exploded 1 | . 1 . Melee . | . . . Uniques/NPCs Destroyed . | . . . Combat | -11 -10 -9 -------- Run | Scr Mat Mat Damage Taken 722 | . 180 542 Core 117 | . 47 70 Absorbed by Shields . | . . . Core Remaining (%) 90 | 100 81 . Volleys Fired 38 | . 18 20 Largest 2 | . 2 2 Hottest 105 | . 80 105 Shots Fired 69 | . 36 33 Gun 69 | . 36 33 Cannon . | . . . Launcher . | . . . Special . | . . . Kinetic . | . . . Thermal 41 | . 18 23 Explosive . | . . . Electromagnetic 28 | . 18 10 Robot Hit Streak 10 | . 8 10 Robot Miss Streak 2 | . 1 2 Penetration Max . | . . . Secondary Targets . | . . . Shots Hit Robots 49 | . 24 25 Core Hits 18 | . 13 5 Critical Hits . | . . . Critical Kills . | . . . Critical Parts Destroyed . | . . . Melee Attacks . | . . . Impact . | . . . Slashing . | . . . Piercing . | . . . Sneak Attacks . | . . . Combat Hostiles . | . . . Follow-up Attacks . | . . . Damage Inflicted 676 | . 378 298 Guns 572 | . 274 298 Cannons . | . . . Explosions 104 | . 104 . Melee . | . . . Ramming . | . . . Kinetic . | . . . Thermal 424 | . 212 212 Explosive . | . . . Electromagnetic 252 | . 166 86 Impact . | . . . Slashing . | . . . Piercing . | . . . Highest Corruption . | . . . Average Corruption . | . . . Corruption Purged . | . . . Overload Shots . | . . . Overflow Damage . | . . . Projectiles . | . . . Explosions . | . . . Melee . | . . . Knockbacks . | . . . Impact . | . . . Kinetic . | . . . Secondary . | . . . Self-Inflicted Damage 56 | . 56 . Shots 1 | . 1 . Rammed . | . . . Targets Rammed . | . . . Kicked . | . . . Crushed . | . . . Highest Temperature 108 | . 108 48 Average Temperature 29 | . 38 21 Received Heat Transfer 168 | . 72 96 Siege Activations . | . . . Robots Corrupted . | . . . Combat Hostiles . | . . . Parts Fried . | . . . Impact Corruptions . | . . . Robots Melted . | . . . Combat Hostiles . | . . . Parts Melted 1 | . . 1 Heat Transferred 908 | . 400 508 Parts Sabotaged . | . . . Parts Stolen . | . . . Parts Stripped . | . . . Power Chain Reactions 1 | . 1 . Missiles Intercepted . | . . . Alert | -11 -10 -9 ------- Run | Scr Mat Mat Peak Influence 134 | . 134 42 Initial . | . . . Average 45 | . 62 27 Maximum Alert Level . | . . . Low Security (%) 100 | 100 100 100 Level 1 . | . . . Level 2 . | . . . Level 3 . | . . . Level 4 . | . . . Level 5 . | . . . High Security . | . . . Max Security . | . . . Squads Dispatched . | . . . Investigation . | . . . Extermination . | . . . Reinforcement . | . . . Assault . | . . . Garrison . | . . . Intercept . | . . . Construction Impeded . | . . . Haulers Reinforced . | . . . Stealth | -11 -10 -9 --------- Run | Scr Mat Mat Distress Signals 3 | . 1 2 Communications Jammed . | . . . Distress Signals . | . . . Times Spotted 13 | . 6 7 Peak Tracking Total 5 | . 3 5 Tactical Retreats . | . . . Traps | -11 -10 -9 ------- Run | Scr Mat Mat Traps Triggered . | . . . Indirectly . | . . . Trap Hack Attempts . | . . . Triggered . | . . . Disarmed . | . . . Reprogrammed . | . . . Reused . | . . . Traps Extracted . | . . . Installed . | . . . Triggered . | . . . Machines | -11 -10 -9 ---------- Run | Scr Mat Mat Machines Disabled 1 | . 1 . Max in Single Turn 1 | . 1 . Machines Sabotaged . | . . . Garrisons Compromised . | . . . Overloaded Fab Kills . | . . . Fab Network Shutdowns . | . . . Hacking | -11 -10 -9 --------- Run | Scr Mat Mat Machines Accessed 2 | . 1 1 Terminals . | . . . Fabricators . | . . . Repair Stations 2 | . 1 1 Recycling Units . | . . . Scanalyzers . | . . . Garrison Access . | . . . Total Hacks 7 | . 2 5 Successful 6 | . 2 4 Failed 1 | . . 1 Catastrophic . | . . . Database Lockouts . | . . . Manual . | . . . Terminals . | . . . Fabricators . | . . . Repair Stations 7 | . 2 5 Recycling Units . | . . . Scanalyzers . | . . . Garrison Access . | . . . Terminal Hacks . | . . . Fabricator Hacks . | . . . Repair Station Hacks 6 | . 2 4 Scan Component 3 | . 1 2 Repair 3 | . 1 2 Recycling Unit Hacks . | . . . Scanalyzer . | . . . Garrison Access Hacks . | . . . Unauthorized Hacks . | . . . Terminals . | . . . Fabricators . | . . . Repair Stations . | . . . Recycling Units . | . . . Scanalyzers . | . . . Garrison Access . | . . . Data Cores Recovered . | . . . Used . | . . . Hacking Detections . | . . . Full Trace Events . | . . . Feedback Events . | . . . Feedback Blocked . | . . . Robot Schematics Acquired . | . . . Robots Built . | . . . Matter . | . . . Time . | . . . Total Robot Build Rating . | . . . Part Schematics Acquired . | . . . Parts Built . | . . . Matter . | . . . Time . | . . . Total Part Build Rating . | . . . Parts Repaired 3 | . 1 2 Time 84 | . 26 58 Parts Recycled . | . . . Recycled Matter . | . . . Retrieved Matter . | . . . Retrieved Components . | . . . Parts Scanalyzed . | . . . Part Schematics Acquired . | . . . Parts Damaged . | . . . Bothacking | -11 -10 -9 ------------ Run | Scr Mat Mat Used RIF Installer . | . . . Robots Hacked . | . . . Non-combat . | . . . Combat . | . . . Robot Hacks Applied . | . . . Relay Couplers Released . | . . . Robots Rewired . | . . . Allies Hacked . | . . . Hacks Repelled . | . . . Allies | -11 -10 -9 -------- Run | Scr Mat Mat Total Allies . | . . . Largest Group . | . . . Highest-Rated Group . | . . . Highest-Rated Ally . | . . . Total Orders . | . . . Ally Attacks . | . . . Total Damage . | . . . Kills . | . . . Allies Corrupted . | . . . Allies Melted . | . . . Intel | -11 -10 -9 ------- Run | Scr Mat Mat Robot Analysis Total . | . . . Derelict Logs Recovered . | . . . Drone Launches . | . . . Drone Recoveries . | . . . Exploration | -11 -10 -9 ------------- Run | Scr Mat Mat Turns Passed 800 | 80 485 235 Spaces Moved 421 | 61 271 89 Core 3 | 3 . . Treads . | . . . Legs 418 | 58 271 89 Wheels . | . . . Hover . | . . . Flight . | . . . Fastest Speed 50 | 50 120 120 Average Speed 119 | 116 120 120 Slowest Speed 120 | 120 120 120 Overloaded Moves . | . . . Propulsion Burnouts . | . . . Robots Hopped . | . . . Cave-ins Triggered . | . . . Exploration Rate (%) 21 | 4 46 14 Regions Visited 2 Branch Regions . Pre-discovered Areas . | . . . Known Exits Taken . | . . . Unknown Exits Taken 2 | 1 1 . Scrap Searched . | . . . Spaces Dug . | . . . Terrain Destroyed 2 | . 2 . Melee . | . . . Projectile . | . . . AOE 2 | . 2 . Terrain Rammed . | . . . Walls Destroyed . | . . . Machines Disabled . | . . . Actions | -11 -10 -9 --------- Run | Scr Mat Mat Total 642 | 67 393 182 Wait 148 | . 86 62 Move 419 | 60 270 89 Hop . | . . . Pick Up 11 | 1 9 1 Fast Attach 13 | 6 3 4 Attach 3 | . . 3 Detach 1 | . 1 . Swap 5 | . 4 1 Drop 4 | . 2 2 Fire 38 | . 18 20 Melee . | . . . Ram . | . . . Kick . | . . . Crush . | . . . Escape Stasis . | . . . Rewire . | . . . Trap . | . . . Miscellaneous . | . . . Route ------- -11/Scrapyard -10/Materials (discovered 2 exits: *Mat / [*Min]) -9/Materials History --------- Turn | Location | Event 7 | -11/Scrapyard | Discovered new exit (range 16) 81 | -11/Scrapyard | Entered Materials 308 | -10/Materials | Build established: Mutant 406 | -10/Materials | Discovered new exit (range 14) 510 | -10/Materials | Repaired Med. Storage Unit 537 | -10/Materials | Discovered new exit (range 5) 566 | -10/Materials | Entered another Materials area 566 | -9/Materials | Evolved 2 slots: Propulsion x2 716 | -9/Materials | Build established: Scavenger-Mutant 744 | -9/Materials | Repaired Aluminum Leg 777 | -9/Materials | Repaired Imp. Aluminum Leg 801 | -9/Materials | Self-destructed Last Messages --------------- Repairing Aluminum Leg... ETC: 26 00722_ K-01 Serf collects debris. 00744_ Repair station completes Aluminum Leg repairs. 00744_ Acquired Aluminum Leg. 00745_ Connecting with Repair Station... >>Scan(Imp. Aluminum Leg) Scanning Imp. Aluminum Leg... Ready to Repair: Imp. Aluminum Leg Rating: 2 Time: 32 >>Repair Repairing Imp. Aluminum Leg... ETC: 32 00772_ W-16 Scout sends out distress signal. 00777_ Repair station completes Imp. Aluminum Leg repairs. 00777_ Acquired Imp. Aluminum Leg. 00787_ W-16 Scout sends out distress signal. 00794_ EM Pulse Gun destroyed. Map ----- +----------------------------------------------------+ | ?????????????????????????????????????????????????? | | ?????????????????????????????????????????????????? | | ?????????????????????????????????????????????????? | | ?????????????????????????????????????????????????? | | ?????????????????????????????????????????????????? | | ?????????????????????????????????????????????????? | | ?????????????????????????????????????????????????? | | ?????????????????????????????????????????????????? | | ?????????????????????????????????????????????????? | | ?????????????????????????????????????????????????? | | ?????????????????? ??????????????????????????????? | | ?????????????????? ??????????????????????????????? | | ?????????????????? ??????????????????????????????? | | ?????????????????# ??????????????????????????????? | | ???????????????### ##????????????????????????????? | | ???????????????? #????????????????????????????? | | ???????????????? #????????????????????????????? | | ???????????????? #????????????????????????????? | | ????????######??# ????????????????????????????? | | ???????? #??# #????????????????????????????? | | ???????? = #??# ##########???????????????????? | | ##### #??# # #???????????????????? | | ## """ #### # """#???????????????????? | | ## """"" + # R"#???????????????????? | | ## """"" #??# # """# """???????????????? | | " ## """"" #??# + s @ Y + """???????????????? | | " ## """ #??# # s """ # """???????????????? | | " ## * #??# # Y""" #? ??????????????? | | #########+####### # """ #?? ???????????????? | | % # #??? ??????????????? | | ##########????##?????????????? | | #????????????????????????????? | | #########+########/######????????????????????????? | | ??????? ??# = #????????????????????????? | | ?????# # ! #????????????????????????? | | ?????# # [ #????????????????????????? | | ?????# !!# """ """ #????????????????????????? | | ?????# ! !!# """ """ #????????????????????????? | | ?????# # """ """ #????????????????????????? | | ?????# # #????????????????????????? | | ?????# #! #????????????????????????? | | ?????# ###########????????????????????????? | | ?????##""T""###??????????????????????????????????? | | ??????#"""""#????????????????????????????????????? | | ???????#####?????????????????????????????????????? | | ?????????????????????????????????????????????????? | | ?????????????????????????????????????????????????? | | ?????????????????????????????????????????????????? | | ?????????????????????????????????????????????????? | | ?????????????????????????????????????????????????? | +----------------------------------------------------+ Best States ------------- Heat Dissipation 38 Energy Generation 10 Energy Capacity 250 Matter Stores 300 Matter Capacity 300 Sight Range 16 Terrain Scan Density 10 Evasion (%) 40 Item Schematics ----------------- None Robot Schematics ------------------ None Fabricated ------------ Nothing Alien Tech Used ----------------- None Achievements -------------- None Challenges ------------ None Game ------ Seed MiningAlloyDesublimator Manual? 0 Play Time 00:06:29 Cumulative 64.8 hours Start 2021.03.14 @ 17:37:25 End 2021.03.14 @ 17:42:10 Sessions 1 Manual Loads 0 Difficulty Rogue Special Mode None Game No. 169 Rogue 18 Adventurer 148 Explorer 3 Win Type - Total 0 Types 0/0/0/0/0/0/0/0/0 Lore% 48 Gallery% 58 Achievement% 46 Wizard Run 0 Options --------- ASCII 0 Keyboard 0 Movement Numpad Keybinds 0 Fullscreen 1 Font 18/SmallcapsGlow Map View 76x50 Tactical HUD 1 Map Filters NONE Filters NONE Steam 1 RUN: 52de489f-b8d4-4615-ad23-e3ea0158c137